fUSD/lending_fUSD_20251017
["ID","MTS","AMOUNT","RATE_DAILY","PERIOD"]
[391630094,1760709120391,-1582.41,0.00028767,17]
[391630095,1760709120400,-217.958888,0.00028767,30]
[391630096,1760709120410,-1494.76,0.00028767,17]
[391630097,1760709120420,-151.0,0.00028767,30]
[391630098,1760709120429,-500.0,0.00028767,17]
[391630099,1760709120438,-151.0,0.00028767,30]
[391630100,1760709120449,-1298.58,0.00028767,17]
[391630101,1760709120459,-6323.72,0.00028767,17]
[391630102,1760709120468,-922.69,0.00028767,17]
[391630103,1760709120477,-209.92,0.00028767,11]
[391630104,1760709120487,-420.144259,0.00028767,30]
[391630105,1760709120501,-420.144259,0.00028767,30]
[391630106,1760709120510,-420.144259,0.00028767,30]
[391630107,1760709120519,-500.0,0.00028767,17]
[391630108,1760709120529,-420.144266,0.00028767,30]
[391630109,1760709120538,-2389.12,0.00028767,17]
[391630110,1760709120547,-500.0,0.00028767,17]
[391630111,1760709120556,-500.0,0.00028767,30]
[391630112,1760709120566,-154.87464162,0.00028767,2]
[391630113,1760709120575,-300.0,0.000288,2]
[391630114,1760709120585,-2784.74,0.000288,2]
[391630115,1760709120594,-2780.06,0.000288,7]
[391630116,1760709120606,-24566.88,0.000288,2]
[391630117,1760709120617,-151.0,0.000288,30]
[391630118,1760709120626,-151.0,0.000288,30]
[391630119,1760709120635,-151.0,0.000288,30]
[391630120,1760709120646,-151.0,0.000288,30]
[391630121,1760709120655,-256.520424,0.000288,30]
[391630122,1760709120664,-256.520424,0.000288,30]
[391630123,1760709120673,-256.520424,0.000288,30]
[391630124,1760709120683,-256.520424,0.000288,30]
[391630125,1760709120693,-316.2023933,0.00028849,2]
[391630126,1760709120702,-1100.0,0.0002888,7]
[391630127,1760709120712,-157.6,0.00028883,30]
[391630128,1760709120722,-154.87464162,0.00028959,2]
[391630129,1760709120732,-316.2023933,0.00028959,2]
[391630130,1760709120742,-200.0,0.00028966,2]
[391630131,1760709120755,-160.0,0.00029,30]
[391630132,1760709120766,-160.0,0.00029,30]
[391630133,1760709120775,-164.0,0.00029,2]
[391630134,1760709120785,-565.51164948,0.00029,5]
[391630135,1760709120795,-2000.0,0.00029,2]
[391630136,1760709120804,-14928.46,0.00029,7]
[391630137,1760709120813,-164.0,0.00029,30]
[391630138,1760709120823,-152.510934,0.00029,30]
[391630139,1760709120833,-151.0,0.00029,30]
[391630140,1760709120842,-151.0,0.00029,30]
[391630141,1760709120851,-151.0,0.00029,30]
[391630142,1760709120860,-419.218869,0.00029,30]
[391630143,1760709120870,-419.218869,0.00029,30]
[391630144,1760709120880,-151.0,0.00029,30]
[391630145,1760709120889,-419.218869,0.00029,30]
[391630146,1760709120899,-419.218869,0.00029,30]
[391630147,1760709120909,-151.0,0.00029,30]
[391630148,1760709120919,-1160.36,0.00029041,17]
[391630149,1760709120928,-585.15,0.00029041,17]
[391630150,1760709120937,-500.0,0.00029041,17]
[391630151,1760709120946,-314.03401657,0.00029041,17]
[391630152,1760709120955,-592.79,0.00029041,17]
[391630153,1760709120964,-1160.24,0.00029041,17]
[391630154,1760709120973,-824.37,0.00029041,2]
[391630155,1760709120982,-1730.63,0.00029041,17]
[391630156,1760709120992,-671.89,0.00029041,6]
[391630157,1760709121005,-500.0,0.00029041,2]
[391630158,1760709121014,-1711.57,0.00029041,17]
[391630159,1760709121024,-526.67,0.00029041,17]
[391630160,1760709121034,-3442.59,0.00029041,17]
[391630161,1760709121043,-606.95,0.00029041,17]
[391630162,1760709121053,-780.1,0.00029041,17]
[391630163,1760709121063,-770.05,0.00029041,17]
[391630164,1760709121073,-500.0,0.00029041,17]
[391630165,1760709121082,-1701.03,0.00029041,17]
[391630166,1760709121092,-1200.12,0.00029041,17]
[391630167,1760709121101,-1288.92,0.00029041,17]
[391630168,1760709121110,-1817.2,0.00029041,17]
[391630169,1760709121119,-500.0,0.00029041,17]
[391630170,1760709121128,-760.86,0.00029041,17]
[391630171,1760709121138,-1098.2,0.00029041,17]
[391630172,1760709121148,-511.22,0.00029041,17]
[391630173,1760709121157,-706.0,0.00029041,17]
[391630174,1760709121167,-3252.66,0.00029041,17]
[391630175,1760709121176,-2857.65,0.00029041,17]
[391630176,1760709121185,-1046.4,0.00029041,17]
[391630177,1760709121195,-500.0,0.00029041,17]
[391630178,1760709121204,-500.0,0.00029041,17]
[391630179,1760709121213,-668.62,0.00029041,17]
[391630180,1760709121223,-3315.73,0.00029041,17]
[391630181,1760709121232,-2028.03,0.00029041,17]
[391630182,1760709121242,-1249.99,0.00029041,17]
[391630183,1760709121256,-500.0,0.00029041,17]
[391630184,1760709121266,-666.89,0.00029041,17]
[391630185,1760709121275,-567.07,0.00029041,17]
[391630186,1760709121285,-624.28,0.00029041,17]
[391630187,1760709121294,-500.0,0.00029041,2]
[391630188,1760709121303,-500.0,0.00029041,17]
[391630189,1760709121313,-411.1109457,0.00029041,17]
[391630190,1760709121322,-644.5,0.00029041,17]
[391630191,1760709121331,-738.71,0.00029041,17]
[391630192,1760709121341,-500.0,0.00029041,17]
[391630193,1760709121351,-875.04,0.00029041,17]
[391630194,1760709121360,-2590.26,0.00029041,17]
[391630195,1760709121371,-1145.85,0.00029041,17]
[391630196,1760709121381,-500.0,0.00029041,17]
[391630197,1760709121391,-280.13518641,0.00029041,17]
[391630198,1760709121401,-589.63,0.00029041,17]
[391630199,1760709121411,-840.86,0.00029041,17]
[391630200,1760709121420,-599.72,0.00029041,17]
[391630201,1760709121430,-375.71519162,0.00029041,17]
[391630202,1760709121440,-2359.88,0.00029041,17]
[391630203,1760709121449,-2899.42,0.00029041,17]
[391630204,1760709121459,-926.78,0.00029041,17]
[391630205,1760709121468,-970.74,0.00029041,17]
[391630206,1760709121478,-1604.59,0.00029041,17]
[391630207,1760709121488,-500.0,0.00029041,17]
[391630208,1760709121500,-500.0,0.00029041,17]
[391630209,1760709121510,-693.35,0.00029041,2]
[391630210,1760709121520,-620.21,0.00029041,17]
[391630211,1760709121531,-331.81687817,0.00029041,17]
[391630212,1760709121541,-693.02,0.00029041,17]
[391630213,1760709121551,-500.0,0.00029041,17]
[391630214,1760709121561,-1354.15,0.00029041,17]
[391630215,1760709121571,-3285.62,0.00029041,17]
[391630216,1760709121581,-500.0,0.00029041,17]
[391630217,1760709121590,-751.82,0.00029041,17]
[391630218,1760709121600,-1494.42,0.00029041,17]
[391630219,1760709121613,-633.38,0.00029041,17]
[391630220,1760709121623,-500.0,0.00029041,17]
[391630221,1760709121632,-996.02,0.00029041,17]
[391630222,1760709121642,-534.95,0.00029041,17]
[391630223,1760709121652,-712.19,0.00029041,17]
[391630224,1760709121662,-755.48,0.00029041,17]
[391630225,1760709121671,-652.89,0.00029041,17]
[391630226,1760709121683,-530.1,0.00029041,17]
[391630227,1760709121692,-500.0,0.00029041,17]
[391630228,1760709121702,-2532.97,0.00029041,17]
[391630229,1760709121711,-1140.2,0.00029041,17]
[391630230,1760709121721,-2976.2,0.00029041,17]
[391630231,1760709121730,-630.41,0.00029041,17]
[391630232,1760709121740,-1119.53,0.00029041,17]
[391630233,1760709121751,-1387.94,0.00029041,17]
[391630234,1760709121761,-666.66,0.00029041,17]
[391630235,1760709121771,-566.55,0.00029041,17]
[391630236,1760709121782,-225.307069,0.00029041,30]
[391630237,1760709121791,-151.0,0.00029041,30]
[391630238,1760709121801,-151.0,0.00029041,30]
[391630239,1760709121810,-500.0,0.00029041,2]
[391630240,1760709121820,-706.74,0.00029041,17]
[391630241,1760709121829,-692.20715275,0.00029041,17]
[391630242,1760709121838,-224.96166734,0.00029041,7]
[391630243,1760709121847,-1306.87,0.00029041,17]
[391630244,1760709121857,-1247.05,0.00029041,17]
[391630245,1760709121866,-2452.62,0.00029041,17]
[391630246,1760709121875,-500.0,0.00029041,17]
[391630247,1760709121885,-538.29653492,0.00029041,17]
[391630248,1760709121894,-530.71,0.00029041,17]
[391630249,1760709121903,-642.79,0.00029041,17]
[391630250,1760709121913,-1026.4,0.00029041,17]
[391630251,1760709121922,-500.0,0.00029041,17]
[391630252,1760709121932,-151.0,0.00029041,30]
[391630253,1760709121942,-500.0,0.00029041,17]
[391630254,1760709121951,-213.446379,0.00029041,30]
[391630255,1760709121960,-153.880187,0.00029041,30]
[391630256,1760709121970,-213.446379,0.00029041,30]
[391630257,1760709121979,-213.446379,0.00029041,30]
[391630258,1760709121988,-213.446375,0.00029041,30]
[391630259,1760709121999,-520.69771684,0.00029041,17]
[391630260,1760709122009,-163.661789,0.00029041,30]
[391630261,1760709122018,-3204.71,0.00029041,17]
[391630262,1760709122027,-163.661789,0.00029041,30]
[391630263,1760709122036,-151.0,0.00029041,30]
[391630264,1760709122045,-163.661789,0.00029041,30]
[391630265,1760709122055,-151.0,0.00029041,30]
[391630266,1760709122064,-522.5,0.00029041,17]
[391630267,1760709122073,-172.121919,0.00029041,30]
[391630268,1760709122089,-910.91,0.00029041,17]
[391630269,1760709122099,-163.661788,0.00029041,30]
[391630270,1760709122108,-172.121919,0.00029041,30]
[391630271,1760709122118,-172.121919,0.00029041,30]
[391630272,1760709122127,-172.121923,0.00029041,30]
[391630273,1760709122137,-1081.82,0.00029041,30]
[391630274,1760709122146,-277.458195,0.00029041,30]
[391630275,1760709122156,-500.0,0.00029041,17]
[391630276,1760709122166,-5381.98,0.00029041,2]
[391630277,1760709122180,-500.0,0.00029041,14]
[391630278,1760709122189,-1649.56,0.00029041,17]
[391630279,1760709122198,-507.36,0.00029041,17]
[391630280,1760709122212,-2000.0,0.00029041,7]
[391630281,1760709122221,-1028.69,0.00029041,17]
[391630282,1760709122230,-2897.84,0.00029041,17]
[391630283,1760709122239,-1506.26,0.00029041,17]
[391630284,1760709122250,-500.0,0.00029041,17]
[391630285,1760709122259,-1864.44,0.00029041,14]
[391630286,1760709122269,-1456.13,0.00029041,17]
[391630287,1760709122279,-402.77625108,0.00029041,16]
[391630288,1760709122288,-1557.69,0.00029041,17]
[391630289,1760709122297,-206.347415,0.00029041,30]
[391630290,1760709122306,-206.347415,0.00029041,30]
[391630291,1760709122316,-206.347415,0.00029041,30]
[391630292,1760709122326,-206.347417,0.00029041,30]
[391630293,1760709122335,-2742.55,0.00029041,17]
[391630294,1760709122344,-300.816843,0.00029041,30]
[391630295,1760709122354,-2074.75,0.00029041,17]
[391630296,1760709122364,-504.38,0.00029041,17]
[391630297,1760709122373,-500.0,0.00029041,17]
[391630298,1760709122384,-1384.14,0.00029041,17]
[391630299,1760709122395,-2196.07,0.00029041,17]
[391630300,1760709122404,-559.51,0.00029041,17]
[391630301,1760709122414,-500.0,0.00029041,17]
[391630302,1760709122423,-3718.78,0.00029041,17]
[391630303,1760709122433,-500.0,0.00029041,17]
[391630304,1760709122443,-440.74052963,0.00029041,17]
[391630305,1760709122452,-3147.15,0.00029041,17]
[391630306,1760709122461,-500.0,0.00029041,17]
[391630307,1760709122471,-4200.71,0.00029041,17]
[391630308,1760709122481,-1582.41,0.00029041,17]
[391630309,1760709122490,-1494.76,0.00029041,17]
[391630310,1760709122505,-491.50157863,0.00029041,17]
[391630311,1760709122514,-1298.58,0.00029041,17]
[391630312,1760709122523,-6323.72,0.00029041,17]
[391630313,1760709122533,-922.69,0.00029041,17]
[391630314,1760709122543,-209.92,0.00029041,12]
[391630315,1760709122553,-2389.12,0.00029041,17]
[391630316,1760709122563,-500.0,0.00029041,30]
[391630317,1760709122572,-1444.0,0.00029041,120]
[391630318,1760709122582,-2000.0,0.00029054,2]
[391630319,1760709122591,-166.22,0.00029142,2]
[391630320,1760709122601,-150.0,0.00029142,2]
[391630321,1760709122613,-1300.0,0.00029154,7]
[391630322,1760709122623,-2050.0,0.00029188,2]
[391630323,1760709122633,-749.0,0.00029188,2]
[391630324,1760709122643,-3408.0,0.00029188,2]
[391630325,1760709122652,-1267.0,0.00029188,2]
[391630326,1760709122662,-1310.0,0.00029188,2]
[391630327,1760709122671,-1589.0,0.00029188,2]
[391630328,1760709122682,-605.0,0.00029188,2]
[391630329,1760709122692,-571.0,0.00029188,2]
[391630330,1760709122702,-2546.0,0.00029188,2]
[391630331,1760709122711,-1183.0,0.00029188,2]
[391630332,1760709122721,-902.0,0.00029188,2]
[391630333,1760709122731,-816.0,0.00029188,2]
[391630334,1760709122741,-784.211,0.00029188,2]
[391630335,1760709122755,-174.26869251,0.000292,2]
[391630336,1760709122764,-219.91426822,0.000292,2]
[391630337,1760709122774,-1000.0,0.000292,2]
[391630338,1760709122783,-478.72,0.00029205,2]
[391630339,1760709122794,-1160.36,0.00029315,17]
[391630340,1760709122804,-585.15,0.00029315,17]
[391630341,1760709122813,-441.71,0.00029315,17]
[391630342,1760709122823,-592.79,0.00029315,17]
[391630343,1760709122832,-1160.24,0.00029315,17]
[391630344,1760709122842,-824.37,0.00029315,2]
[391630345,1760709122851,-1730.63,0.00029315,17]
[391630346,1760709122861,-671.89,0.00029315,6]
[391630347,1760709122871,-500.0,0.00029315,2]
[391630348,1760709122882,-1711.57,0.00029315,17]
[391630349,1760709122891,-526.67,0.00029315,17]
[391630350,1760709122902,-3442.59,0.00029315,17]
[391630351,1760709122911,-606.95,0.00029315,17]
[391630352,1760709122921,-780.1,0.00029315,17]
[391630353,1760709122931,-770.05,0.00029315,17]
[391630354,1760709122941,-500.0,0.00029315,17]
[391630355,1760709122951,-1701.03,0.00029315,17]
[391630356,1760709122960,-1200.12,0.00029315,17]
[391630357,1760709122970,-1288.92,0.00029315,17]
[391630358,1760709122980,-1817.2,0.00029315,17]
[391630359,1760709122989,-500.0,0.00029315,17]
[391630360,1760709123001,-760.86,0.00029315,17]
[391630361,1760709123012,-1098.2,0.00029315,17]
[391630362,1760709123022,-511.22,0.00029315,17]
[391630363,1760709123032,-706.0,0.00029315,17]
[391630364,1760709123043,-3252.66,0.00029315,17]
[391630365,1760709123052,-450.0,0.00029315,16]
[391630366,1760709123062,-2857.65,0.00029315,17]
[391630367,1760709123071,-1046.4,0.00029315,17]
[391630368,1760709123081,-500.0,0.00029315,17]
[391630369,1760709123090,-500.0,0.00029315,17]
[391630370,1760709123100,-668.62,0.00029315,17]
[391630371,1760709123110,-3315.73,0.00029315,17]
[391630372,1760709123120,-2028.03,0.00029315,17]
[391630373,1760709123130,-1249.99,0.00029315,17]
[391630374,1760709123139,-500.0,0.00029315,17]
[391630375,1760709123150,-666.89,0.00029315,17]
[391630376,1760709123159,-567.07,0.00029315,17]
[391630377,1760709123169,-624.28,0.00029315,17]
[391630378,1760709123179,-500.0,0.00029315,2]
[391630379,1760709123190,-500.0,0.00029315,17]
[391630380,1760709123200,-644.5,0.00029315,17]
[391630381,1760709123210,-738.71,0.00029315,17]
[391630382,1760709123221,-500.0,0.00029315,17]
[391630383,1760709123232,-875.04,0.00029315,17]
[391630384,1760709123244,-2590.26,0.00029315,17]
[391630385,1760709123265,-1145.85,0.00029315,17]
[391630386,1760709123277,-500.0,0.00029315,17]
[391630387,1760709123287,-589.63,0.00029315,17]
[391630388,1760709123297,-840.86,0.00029315,17]
[391630389,1760709123307,-599.72,0.00029315,17]
[391630390,1760709123318,-2359.88,0.00029315,17]
[391630391,1760709123328,-2899.42,0.00029315,17]
[391630392,1760709123339,-926.78,0.00029315,17]
[391630393,1760709123349,-970.74,0.00029315,17]
[391630394,1760709123359,-1604.59,0.00029315,17]
[391630395,1760709123369,-500.0,0.00029315,17]
[391630396,1760709123378,-500.0,0.00029315,17]
[391630397,1760709123388,-693.35,0.00029315,2]
[391630398,1760709123398,-620.21,0.00029315,17]
[391630399,1760709123408,-693.02,0.00029315,17]
[391630400,1760709123418,-500.0,0.00029315,17]
[391630401,1760709123427,-151.0,0.00029315,30]
[391630402,1760709123437,-1354.15,0.00029315,17]
[391630403,1760709123447,-151.0,0.00029315,30]
[391630404,1760709123456,-151.0,0.00029315,30]
[391630405,1760709123466,-3285.62,0.00029315,17]
[391630406,1760709123476,-151.0,0.00029315,30]
[391630407,1760709123486,-280.712066,0.00029315,30]
[391630408,1760709123505,-151.0,0.00029315,30]
[391630409,1760709123515,-151.0,0.00029315,30]
[391630410,1760709123525,-200.59618392,0.00029315,17]
[391630411,1760709123534,-280.712066,0.00029315,30]
[391630412,1760709123544,-171.786278,0.00029315,30]
[391630413,1760709123553,-211.947456,0.00029315,30]
[391630414,1760709123563,-751.82,0.00029315,17]
[391630415,1760709123573,-211.947456,0.00029315,30]
[391630416,1760709123583,-280.712066,0.00029315,30]
[391630417,1760709123593,-211.947456,0.00029315,30]
[391630418,1760709123604,-280.712076,0.00029315,30]
[391630419,1760709123618,-211.947461,0.00029315,30]
[391630420,1760709123628,-1494.42,0.00029315,17]
[391630421,1760709123638,-151.0,0.00029315,30]
[391630422,1760709123650,-633.38,0.00029315,17]
[391630423,1760709123660,-500.0,0.00029315,17]
[391630424,1760709123670,-996.02,0.00029315,17]
[391630425,1760709123680,-534.95,0.00029315,17]
[391630426,1760709123690,-712.19,0.00029315,17]
[391630427,1760709123700,-755.48,0.00029315,17]
[391630428,1760709123714,-151.0,0.00029315,30]
[391630429,1760709123725,-652.89,0.00029315,17]
[391630430,1760709123735,-530.1,0.00029315,17]
[391630431,1760709123745,-151.0,0.00029315,30]
[391630432,1760709123759,-151.0,0.00029315,30]
[391630433,1760709123769,-151.0,0.00029315,30]
[391630434,1760709123779,-151.0,0.00029315,30]
[391630435,1760709123788,-288.500639,0.00029315,30]
[391630436,1760709123798,-500.0,0.00029315,17]
[391630437,1760709123808,-151.0,0.00029315,30]
[391630438,1760709123818,-2532.97,0.00029315,17]
[391630439,1760709123828,-1140.2,0.00029315,17]
[391630440,1760709123838,-2976.2,0.00029315,17]
[391630441,1760709123848,-630.41,0.00029315,17]
[391630442,1760709123859,-1119.53,0.00029315,17]
[391630443,1760709123870,-1387.94,0.00029315,17]
[391630444,1760709123880,-666.66,0.00029315,17]
[391630445,1760709123889,-566.55,0.00029315,17]
[391630446,1760709123899,-500.0,0.00029315,2]
[391630447,1760709123909,-706.74,0.00029315,17]
[391630448,1760709123919,-1306.87,0.00029315,17]
[391630449,1760709123928,-1247.05,0.00029315,17]
[391630450,1760709123938,-2452.62,0.00029315,17]
[391630451,1760709123947,-500.0,0.00029315,17]
[391630452,1760709123957,-530.71,0.00029315,17]
[391630453,1760709123967,-642.79,0.00029315,17]
[391630454,1760709123977,-1026.4,0.00029315,17]
[391630455,1760709123987,-500.0,0.00029315,17]
[391630456,1760709124001,-500.0,0.00029315,17]
[391630457,1760709124011,-3204.71,0.00029315,17]
[391630458,1760709124021,-522.5,0.00029315,17]
[391630459,1760709124031,-910.91,0.00029315,17]
[391630460,1760709124041,-1081.82,0.00029315,30]
[391630462,1760709124050,-168.18039579,0.00029315,17]
[391630463,1760709124060,-5381.98,0.00029315,2]
[391630464,1760709124070,-500.0,0.00029315,14]
[391630465,1760709124080,-1649.56,0.00029315,17]
[391630466,1760709124090,-507.36,0.00029315,17]
[391630467,1760709124101,-2000.0,0.00029315,7]
[391630468,1760709124110,-1028.69,0.00029315,17]
[391630469,1760709124120,-2897.84,0.00029315,17]
[391630470,1760709124130,-1506.26,0.00029315,17]
[391630471,1760709124140,-500.0,0.00029315,17]
[391630472,1760709124150,-1864.44,0.00029315,14]
[391630473,1760709124160,-1456.13,0.00029315,17]
[391630474,1760709124170,-1557.69,0.00029315,17]
[391630475,1760709124180,-2742.55,0.00029315,17]
[391630476,1760709124190,-2074.75,0.00029315,17]
[391630477,1760709124199,-504.38,0.00029315,17]
[391630478,1760709124209,-500.0,0.00029315,17]
[391630479,1760709124218,-1384.14,0.00029315,17]
[391630480,1760709124229,-2196.07,0.00029315,17]
[391630481,1760709124239,-559.51,0.00029315,17]
[391630482,1760709124252,-500.0,0.00029315,17]
[391630483,1760709124262,-3718.78,0.00029315,17]
[391630484,1760709124272,-500.0,0.00029315,17]
[391630485,1760709124282,-3147.15,0.00029315,17]
[391630486,1760709124292,-500.0,0.00029315,17]
[391630487,1760709124302,-4200.71,0.00029315,17]
[391630488,1760709124312,-1582.41,0.00029315,17]
[391630489,1760709124322,-1494.76,0.00029315,17]
[391630490,1760709124332,-1298.58,0.00029315,17]
[391630491,1760709124342,-6323.72,0.00029315,17]
[391630492,1760709124352,-922.69,0.00029315,17]
[391630493,1760709124362,-209.92,0.00029315,13]
[391630494,1760709124372,-151.0,0.00029315,30]
[391630495,1760709124383,-2389.12,0.00029315,17]
[391630496,1760709124393,-500.0,0.00029315,30]
[391630497,1760709124403,-2220.07332795,0.00029395,4]
[391630498,1760709124413,-2878.95807346,0.00029396,2]
[391630499,1760709124424,-3000.0,0.00029428,7]
[391630500,1760709124434,-259.28212388,0.00029428,30]
[391630501,1760709124445,-150.0,0.00029475,120]
[391630502,1760709124455,-693.27,0.00029483,15]
[391630503,1760709124465,-693.27,0.00029483,15]
[391630504,1760709124476,-693.27,0.00029483,15]
[391630505,1760709124487,-693.27,0.00029483,15]
[391630506,1760709124501,-2784.74,0.000295,2]
[391630507,1760709124511,-2780.06,0.000295,7]
[391630508,1760709124521,-24566.88,0.000295,2]
[391630509,1760709124531,-150.0,0.00029514,120]
[391630510,1760709124541,-150.0,0.00029531,120]
[391630511,1760709124551,-150.0,0.00029558,120]
[391630512,1760709124562,-1160.36,0.00029589,17]
[391630513,1760709124572,-585.15,0.00029589,17]
[391630514,1760709124583,-592.79,0.00029589,17]
[391630515,1760709124594,-1160.24,0.00029589,17]
[391630516,1760709124608,-824.37,0.00029589,2]
[391630517,1760709124619,-1730.63,0.00029589,17]
[391630518,1760709124630,-671.89,0.00029589,6]
[391630519,1760709124640,-500.0,0.00029589,2]
[391630520,1760709124651,-1711.57,0.00029589,17]
[391630521,1760709124662,-526.67,0.00029589,17]
[391630522,1760709124673,-3442.59,0.00029589,17]
[391630523,1760709124684,-606.95,0.00029589,17]
[391630524,1760709124694,-780.1,0.00029589,17]
[391630525,1760709124705,-770.05,0.00029589,17]
[391630526,1760709124715,-500.0,0.00029589,17]
[391630527,1760709124725,-1701.03,0.00029589,17]
[391630528,1760709124736,-1200.12,0.00029589,17]
[391630529,1760709124746,-1288.92,0.00029589,17]
[391630530,1760709124760,-1817.2,0.00029589,17]
[391630531,1760709124770,-500.0,0.00029589,17]
[391630532,1760709124781,-760.86,0.00029589,17]
[391630533,1760709124792,-1098.2,0.00029589,17]
[391630534,1760709124802,-511.22,0.00029589,17]
[391630535,1760709124812,-706.0,0.00029589,17]
[391630536,1760709124823,-3252.66,0.00029589,17]
[391630537,1760709124833,-2857.65,0.00029589,17]
[391630538,1760709124843,-1046.4,0.00029589,17]
[391630539,1760709124854,-500.0,0.00029589,17]
[391630540,1760709124864,-500.0,0.00029589,17]
[391630541,1760709124874,-668.62,0.00029589,17]
[391630542,1760709124884,-151.0,0.00029589,30]
[391630543,1760709124894,-3315.73,0.00029589,17]
[391630544,1760709124904,-2028.03,0.00029589,17]
[391630545,1760709124914,-1249.99,0.00029589,17]
[391630546,1760709124924,-350.41647346,0.00029589,17]
[391630547,1760709124935,-666.89,0.00029589,17]
[391630548,1760709124945,-151.0,0.00029589,30]
[391630549,1760709124955,-567.07,0.00029589,17]
[391630550,1760709124966,-624.28,0.00029589,17]
[391630551,1760709124976,-151.0,0.00029589,30]
[391630552,1760709124987,-152.033785,0.00029589,30]
[391630553,1760709125005,-359.78457241,0.00029589,2]
[391630554,1760709125017,-500.0,0.00029589,17]
[391630555,1760709125027,-644.5,0.00029589,17]
[391630556,1760709125038,-255.08291,0.00029589,30]
[391630557,1760709125049,-738.71,0.00029589,17]
[391630558,1760709125059,-500.0,0.00029589,17]
[391630559,1760709125070,-151.0,0.00029589,30]
[391630560,1760709125080,-180.052743,0.00029589,30]
[391630561,1760709125091,-151.0,0.00029589,30]
[391630562,1760709125103,-875.04,0.00029589,17]
[391630563,1760709125114,-2590.26,0.00029589,17]
[391630564,1760709125125,-1145.85,0.00029589,17]
[391630565,1760709125135,-500.0,0.00029589,17]
[391630566,1760709125145,-589.63,0.00029589,17]
[391630567,1760709125155,-840.86,0.00029589,17]
[391630568,1760709125166,-599.72,0.00029589,17]
[391630569,1760709125176,-2359.88,0.00029589,17]
[391630570,1760709125186,-2899.42,0.00029589,17]
[391630571,1760709125196,-926.78,0.00029589,17]
[391630572,1760709125206,-970.74,0.00029589,17]
[391630573,1760709125216,-1604.59,0.00029589,17]
[391630574,1760709125226,-500.0,0.00029589,17]
[391630575,1760709125236,-500.0,0.00029589,17]
[391630576,1760709125247,-151.0,0.00029589,15]
[391630577,1760709125263,-151.0,0.00029589,30]
[391630578,1760709125274,-693.35,0.00029589,2]
[391630579,1760709125284,-151.0,0.00029589,30]
[391630580,1760709125295,-620.21,0.00029589,17]
[391630581,1760709125305,-693.02,0.00029589,17]
[391630582,1760709125315,-334.51371137,0.00029589,17]
[391630583,1760709125326,-1354.15,0.00029589,17]
[391630584,1760709125336,-3285.62,0.00029589,17]
[391630585,1760709125347,-751.82,0.00029589,17]
[391630586,1760709125357,-1494.42,0.00029589,17]
[391630587,1760709125367,-633.38,0.00029589,17]
[391630588,1760709125377,-195.03802379,0.00029589,17]
[391630589,1760709125387,-996.02,0.00029589,17]
[391630590,1760709125398,-534.95,0.00029589,17]
[391630591,1760709125408,-712.19,0.00029589,17]
[391630592,1760709125418,-755.48,0.00029589,17]
[391630593,1760709125427,-652.89,0.00029589,17]
[391630594,1760709125438,-500.0,0.00029589,17]